[Event "*** Titled Tuesday Blitz"]
[Site "Chess.com"]
[Date "2020.10.20"]
[Round "8"]
[White "Sergey85Rodchenkov"]
[Black "frederiksvane"]
[Result "0-1"]
[WhiteElo "2421"]
[BlackElo "2643"]
[TimeControl "180+1"]
[EndTime "11:37:37 PDT"]
[Termination "frederiksvane won by checkmate"]

1. e4 {[%clk 0:03:00.9]} 1... c5 {[%clk 0:02:56]} 2. Nf3 {[%clk 0:03:00.8]} 2...
e6 {[%clk 0:02:54.6]} 3. d3 {[%clk 0:03:00.8]} 3... Nc6 {[%clk 0:02:54]} 4. g3
{[%clk 0:03:00.7]} 4... Nf6 {[%clk 0:02:53.6]} 5. Bg2 {[%clk 0:03:00.3]} 5... d5
{[%clk 0:02:54]} 6. Nbd2 {[%clk 0:02:58.9]} 6... Be7 {[%clk 0:02:49.4]} 7. O-O
{[%clk 0:02:58.3]} 7... b6 {[%clk 0:02:41.6]} 8. Re1 {[%clk 0:02:57.6]} 8... Bb7
{[%clk 0:02:33.8]} 9. h4 {[%clk 0:02:56.3]} 9... Qc7 {[%clk 0:02:32]} 10. exd5
{[%clk 0:02:52.7]} 10... exd5 {[%clk 0:02:27.8]} 11. c3 {[%clk 0:02:45.1]} 11...
O-O {[%clk 0:02:26.7]} 12. Nb3 {[%clk 0:02:43.1]} 12... h6 {[%clk 0:02:25.1]}
13. Bf4 {[%clk 0:02:42.7]} 13... Bd6 {[%clk 0:02:25.3]} 14. Bxd6 {[%clk
0:02:42.1]} 14... Qxd6 {[%clk 0:02:26.2]} 15. d4 {[%clk 0:02:42.3]} 15... Rae8
{[%clk 0:02:20.8]} 16. Qc2 {[%clk 0:02:36.4]} 16... Ne4 {[%clk 0:02:14.6]} 17.
Rad1 {[%clk 0:02:32.9]} 17... Qc7 {[%clk 0:01:58.8]} 18. dxc5 {[%clk 0:02:26.2]}
18... bxc5 {[%clk 0:01:59.7]} 19. Nfd2 {[%clk 0:02:08.8]} 19... Nf6 {[%clk
0:01:55.2]} 20. Nxc5 {[%clk 0:02:04.5]} 20... Rxe1+ {[%clk 0:01:54.5]} 21. Rxe1
{[%clk 0:02:03.9]} 21... Bc8 {[%clk 0:01:54.5]} 22. Nf3 {[%clk 0:01:59.6]} 22...
Re8 {[%clk 0:01:50.8]} 23. Rxe8+ {[%clk 0:01:58.7]} 23... Nxe8 {[%clk
0:01:51.7]} 24. b4 {[%clk 0:01:57.4]} 24... Nd6 {[%clk 0:01:50.1]} 25. Qd3
{[%clk 0:01:52.5]} 25... Be6 {[%clk 0:01:45.4]} 26. Nd4 {[%clk 0:01:51.6]} 26...
Nxd4 {[%clk 0:01:42.9]} 27. Qxd4 {[%clk 0:01:51.8]} 27... Nf5 {[%clk 0:01:34.7]}
28. Qd3 {[%clk 0:01:50.4]} 28... Qe5 {[%clk 0:01:34.6]} 29. Qd2 {[%clk
0:01:37.2]} 29... d4 {[%clk 0:01:16.3]} 30. Nxe6 {[%clk 0:01:30.4]} 30... fxe6
{[%clk 0:01:08.4]} 31. cxd4 {[%clk 0:01:28.7]} 31... Nxd4 {[%clk 0:01:09]} 32.
a4 {[%clk 0:01:18.3]} 32... Kf7 {[%clk 0:01:00.9]} 33. b5 {[%clk 0:01:13.5]}
33... g5 {[%clk 0:00:55.2]} 34. hxg5 {[%clk 0:01:12.5]} 34... hxg5 {[%clk
0:00:56.1]} 35. Qe3 {[%clk 0:01:06.8]} 35... Ne2+ {[%clk 0:00:22.4]} 36. Kh2
{[%clk 0:00:51.7]} 36... Qh8+ {[%clk 0:00:22.1]} 37. Bh3 {[%clk 0:00:51.3]}
37... Nd4 {[%clk 0:00:22.7]} 38. Kg2 {[%clk 0:00:46.9]} 38... Qa8+ {[%clk
0:00:22.3]} 39. f3 {[%clk 0:00:42.9]} 39... Qd5 {[%clk 0:00:20.2]} 40. Bg4
{[%clk 0:00:40.9]} 40... Kf6 {[%clk 0:00:14.3]} 41. Kh3 {[%clk 0:00:35.4]} 41...
Qd8 {[%clk 0:00:09.9]} 42. Qd3 {[%clk 0:00:28.9]} 42... Qd5 {[%clk 0:00:07.1]}
43. Qe4 {[%clk 0:00:21.4]} 43... Qxe4 {[%clk 0:00:04.8]} 44. fxe4 {[%clk
0:00:21]} 44... Ke5 {[%clk 0:00:05.7]} 45. Kg2 {[%clk 0:00:16.8]} 45... Kxe4
{[%clk 0:00:05.6]} 46. Kf2 {[%clk 0:00:17]} 46... Kd3 {[%clk 0:00:05.5]} 47. Bh3
{[%clk 0:00:15.7]} 47... e5 {[%clk 0:00:04.7]} 48. Bd7 {[%clk 0:00:14.3]} 48...
e4 {[%clk 0:00:04.2]} 49. a5 {[%clk 0:00:13.2]} 49... e3+ {[%clk 0:00:04.5]} 50.
Ke1 {[%clk 0:00:13.3]} 50... Nf3+ {[%clk 0:00:04.2]} 51. Kf1 {[%clk 0:00:12.7]}
51... e2+ {[%clk 0:00:05.1]} 52. Kf2 {[%clk 0:00:13]} 52... e1=Q+ {[%clk
0:00:04.8]} 53. Kxf3 {[%clk 0:00:13.9]} 53... Qe2# {[%clk 0:00:03.7]} 0-1

[Event "*** Titled Tuesday Blitz"]
[Site "Chess.com"]
[Date "2020.10.20"]
[Round "8"]
[White "Pertinhez76"]
[Black "Kazmin_Dmitrij"]
[Result "0-1"]
[WhiteElo "2136"]
[BlackElo "2266"]
[TimeControl "180+1"]
[EndTime "11:37:38 PDT"]
[Termination "Kazmin_Dmitrij won on time"]

1. d4 {[%clk 0:03:00.9]} 1... f5 {[%clk 0:02:59.2]} 2. c4 {[%clk 0:02:54.8]}
2... Nf6 {[%clk 0:02:58.1]} 3. g3 {[%clk 0:02:52.8]} 3... g6 {[%clk 0:02:57.8]}
4. Bg2 {[%clk 0:02:53.2]} 4... Bg7 {[%clk 0:02:58]} 5. Nh3 {[%clk 0:02:52.8]}
5... O-O {[%clk 0:02:45.3]} 6. O-O {[%clk 0:02:52.5]} 6... Nc6 {[%clk
0:02:37.7]} 7. e3 {[%clk 0:02:37.6]} 7... e5 {[%clk 0:02:28.8]} 8. d5 {[%clk
0:02:36.8]} 8... Ne7 {[%clk 0:02:27.2]} 9. b4 {[%clk 0:02:30.8]} 9... a5 {[%clk
0:02:24.8]} 10. bxa5 {[%clk 0:02:29.7]} 10... d6 {[%clk 0:02:12.8]} 11. Bb2
{[%clk 0:02:29.1]} 11... Rxa5 {[%clk 0:02:11.3]} 12. Nd2 {[%clk 0:02:25.4]}
12... h6 {[%clk 0:02:06.7]} 13. Nb3 {[%clk 0:02:15.3]} 13... Ra6 {[%clk
0:01:47.2]} 14. a4 {[%clk 0:02:04.7]} 14... Bd7 {[%clk 0:01:37.4]} 15. a5 {[%clk
0:02:03.9]} 15... Qe8 {[%clk 0:01:32.9]} 16. Qc1 {[%clk 0:01:41.1]} 16... g5
{[%clk 0:01:25.2]} 17. Kh1 {[%clk 0:01:34.4]} 17... g4 {[%clk 0:01:22.7]} 18.
Ng1 {[%clk 0:01:34.4]} 18... h5 {[%clk 0:01:17.8]} 19. f3 {[%clk 0:01:32.1]}
19... Qg6 {[%clk 0:01:12.8]} 20. c5 {[%clk 0:01:27.6]} 20... Bh6 {[%clk
0:00:58.7]} 21. f4 {[%clk 0:01:20.6]} 21... e4 {[%clk 0:00:46.5]} 22. Rd1 {[%clk
0:01:17.5]} 22... Nexd5 {[%clk 0:00:38.3]} 23. Qc4 {[%clk 0:01:01.5]} 23... Qf7
{[%clk 0:00:33.3]} 24. Bd4 {[%clk 0:00:35.1]} 24... Be6 {[%clk 0:00:31.5]} 25.
Qe2 {[%clk 0:00:20]} 25... Nxf4 {[%clk 0:00:25.6]} 26. gxf4 {[%clk 0:00:18.6]}
26... Bxb3 {[%clk 0:00:24.5]} 27. Rdb1 {[%clk 0:00:18.5]} 27... Bc4 {[%clk
0:00:22.6]} 28. Qb2 {[%clk 0:00:19.4]} 28... Bg7 {[%clk 0:00:21.4]} 29. Qxb7
{[%clk 0:00:19]} 29... Rfa8 {[%clk 0:00:17.9]} 30. cxd6 {[%clk 0:00:18.3]} 30...
cxd6 {[%clk 0:00:17.9]} 31. Qxf7+ {[%clk 0:00:17.6]} 31... Kxf7 {[%clk
0:00:17.8]} 32. Rb7+ {[%clk 0:00:17.8]} 32... Kg6 {[%clk 0:00:18.1]} 33. Rc1
{[%clk 0:00:18.1]} 33... Bd5 {[%clk 0:00:17.8]} 34. Re7 {[%clk 0:00:13.8]} 34...
Re8 {[%clk 0:00:15]} 35. Rcc7 {[%clk 0:00:13.9]} 35... Rxe7 {[%clk 0:00:14.7]}
36. Rxe7 {[%clk 0:00:14.8]} 36... Rxa5 {[%clk 0:00:14.4]} 37. h3 {[%clk
0:00:13.4]} 37... g3 {[%clk 0:00:13.4]} 38. h4 {[%clk 0:00:13.7]} 38... Ra2
{[%clk 0:00:11.5]} 39. Nh3 {[%clk 0:00:12.7]} 39... Bf8 {[%clk 0:00:11.1]} 40.
Rc7 {[%clk 0:00:10.4]} 40... Ng4 {[%clk 0:00:10.7]} 41. Rc1 {[%clk 0:00:05.8]}
41... Nf2+ {[%clk 0:00:10.1]} 42. Kg1 {[%clk 0:00:06.7]} 42... Nd3 {[%clk
0:00:08.8]} 43. Rd1 {[%clk 0:00:04.3]} 43... Bc4 {[%clk 0:00:06.4]} 44. Rb1
{[%clk 0:00:04.4]} 44... Be7 {[%clk 0:00:06]} 45. Bf1 {[%clk 0:00:04.5]} 45...
Bxh4 {[%clk 0:00:05]} 46. Bxd3 {[%clk 0:00:03.1]} 46... Bxd3 {[%clk 0:00:05.2]}
47. Rd1 {[%clk 0:00:02.7]} 47... g2 {[%clk 0:00:04.5]} 0-1

[Event "*** Titled Tuesday Blitz"]
[Site "Chess.com"]
[Date "2020.10.20"]
[Round "8"]
[White "Volodar_Murzin"]
[Black "Guenplen"]
[Result "0-1"]
[WhiteElo "2609"]
[BlackElo "2837"]
[TimeControl "180+1"]
[EndTime "11:37:41 PDT"]
[Termination "Guenplen won on time"]

1. e4 {[%clk 0:03:00.9]} 1... c5 {[%clk 0:03:00.2]} 2. Nf3 {[%clk 0:03:00.7]}
2... e6 {[%clk 0:02:59.7]} 3. g3 {[%clk 0:03:00.3]} 3... Nc6 {[%clk 0:02:59.6]}
4. Bg2 {[%clk 0:02:59.9]} 4... Nf6 {[%clk 0:03:00.2]} 5. Qe2 {[%clk 0:03:00.2]}
5... d6 {[%clk 0:03:00.1]} 6. O-O {[%clk 0:02:59.5]} 6... Be7 {[%clk 0:03:00.5]}
7. Rd1 {[%clk 0:02:59.1]} 7... O-O {[%clk 0:02:55.7]} 8. d4 {[%clk 0:02:58.4]}
8... cxd4 {[%clk 0:02:56.6]} 9. Nxd4 {[%clk 0:02:58]} 9... Nxd4 {[%clk
0:02:56.7]} 10. Rxd4 {[%clk 0:02:57.9]} 10... e5 {[%clk 0:02:57.6]} 11. Rd1
{[%clk 0:02:53.9]} 11... Bg4 {[%clk 0:02:56.8]} 12. Bf3 {[%clk 0:02:50.3]} 12...
Bxf3 {[%clk 0:02:56.4]} 13. Qxf3 {[%clk 0:02:51.2]} 13... Rc8 {[%clk 0:02:50.9]}
14. Nc3 {[%clk 0:02:49.1]} 14... h6 {[%clk 0:02:49.2]} 15. Be3 {[%clk
0:02:47.2]} 15... a6 {[%clk 0:02:48.7]} 16. Rd2 {[%clk 0:02:45.7]} 16... Qd7
{[%clk 0:02:47.5]} 17. Rad1 {[%clk 0:02:44]} 17... Qh3 {[%clk 0:02:45.7]} 18.
Re2 {[%clk 0:02:19]} 18... Rc4 {[%clk 0:02:37.9]} 19. Nd5 {[%clk 0:02:11.7]}
19... Nxd5 {[%clk 0:02:35.5]} 20. Rxd5 {[%clk 0:02:12.6]} 20... Rfc8 {[%clk
0:02:18]} 21. c3 {[%clk 0:02:09]} 21... Qe6 {[%clk 0:02:17.9]} 22. Bd2 {[%clk
0:02:03.1]} 22... R4c6 {[%clk 0:02:12.3]} 23. Qd3 {[%clk 0:02:00.6]} 23... h5
{[%clk 0:02:07]} 24. f4 {[%clk 0:01:52.4]} 24... Bf6 {[%clk 0:01:52]} 25. f5
{[%clk 0:01:48]} 25... Qe7 {[%clk 0:01:51.2]} 26. h4 {[%clk 0:01:45.5]} 26...
Qc7 {[%clk 0:01:38.6]} 27. Qf3 {[%clk 0:01:39.1]} 27... Rc4 {[%clk 0:01:37.9]}
28. Qxh5 {[%clk 0:01:35.7]} 28... Qb6+ {[%clk 0:01:37.8]} 29. Be3 {[%clk
0:01:35]} 29... Qc6 {[%clk 0:01:38.2]} 30. Qf3 {[%clk 0:01:35]} 30... b5 {[%clk
0:01:35.8]} 31. Bd2 {[%clk 0:01:27.8]} 31... b4 {[%clk 0:01:33.2]} 32. cxb4
{[%clk 0:01:22.2]} 32... Bd8 {[%clk 0:01:26.1]} 33. Kg2 {[%clk 0:01:15.5]} 33...
f6 {[%clk 0:01:21]} 34. Bc3 {[%clk 0:01:07.2]} 34... Bb6 {[%clk 0:01:19.8]} 35.
Qd3 {[%clk 0:00:57.3]} 35... Bd4 {[%clk 0:01:11.7]} 36. Bxd4 {[%clk 0:00:55.1]}
36... exd4 {[%clk 0:01:10.5]} 37. Rxd4 {[%clk 0:00:55.3]} 37... Rxd4 {[%clk
0:01:07.8]} 38. Qxd4 {[%clk 0:00:53.4]} 38... Kh7 {[%clk 0:01:08.7]} 39. a3
{[%clk 0:00:48.1]} 39... Qc1 {[%clk 0:00:58.2]} 40. Qg1 {[%clk 0:00:36.6]} 40...
Qc4 {[%clk 0:00:49.4]} 41. Qd1 {[%clk 0:00:33.6]} 41... Qc6 {[%clk 0:00:33.7]}
42. Kh3 {[%clk 0:00:26.2]} 42... Re8 {[%clk 0:00:24.7]} 43. Qd3 {[%clk
0:00:12.7]} 43... Qc1 {[%clk 0:00:23.5]} 44. Qf3 {[%clk 0:00:12.9]} 44... Kg8
{[%clk 0:00:19.6]} 45. Kg4 {[%clk 0:00:08.9]} 45... Re5 {[%clk 0:00:12.8]} 46.
Qb3+ {[%clk 0:00:05.8]} 46... Kh7 {[%clk 0:00:12.8]} 47. Qd3 {[%clk 0:00:05.3]}
47... Qf1 {[%clk 0:00:11.7]} 48. Re3 {[%clk 0:00:03.7]} 48... Qc1 {[%clk
0:00:08.6]} 49. Re2 {[%clk 0:00:01.2]} 49... Qf1 {[%clk 0:00:08.3]} 50. Qf3
{[%clk 0:00:01.8]} 50... Qd1 {[%clk 0:00:06.7]} 0-1

[Event "*** Titled Tuesday Blitz"]
[Site "Chess.com"]
[Date "2020.10.20"]
[Round "8"]
[White "poppy73"]
[Black "cukin84"]
[Result "1-0"]
[WhiteElo "2231"]
[BlackElo "2046"]
[TimeControl "180+1"]
[EndTime "11:37:42 PDT"]
[Termination "poppy73 won by resignation"]

1. e4 {[%clk 0:03:00.9]} 1... c6 {[%clk 0:02:57.1]} 2. Nc3 {[%clk 0:02:59.9]}
2... d5 {[%clk 0:02:56.3]} 3. Nf3 {[%clk 0:03:00.4]} 3... Bg4 {[%clk 0:02:55.5]}
4. h3 {[%clk 0:02:59.8]} 4... Bxf3 {[%clk 0:02:54.2]} 5. Qxf3 {[%clk 0:03:00.7]}
5... e6 {[%clk 0:02:52.4]} 6. Be2 {[%clk 0:02:59.7]} 6... Nd7 {[%clk 0:02:50.7]}
7. d4 {[%clk 0:02:57.6]} 7... dxe4 {[%clk 0:02:49.5]} 8. Nxe4 {[%clk 0:02:57]}
8... Ngf6 {[%clk 0:02:49.6]} 9. O-O {[%clk 0:02:48.3]} 9... Nxe4 {[%clk
0:02:49]} 10. Qxe4 {[%clk 0:02:49.2]} 10... Nf6 {[%clk 0:02:49.1]} 11. Qd3
{[%clk 0:02:49.9]} 11... Be7 {[%clk 0:02:48.1]} 12. a4 {[%clk 0:02:48.9]} 12...
a5 {[%clk 0:02:45.8]} 13. Bf4 {[%clk 0:02:42.1]} 13... O-O {[%clk 0:02:44.3]}
14. Rad1 {[%clk 0:02:40.7]} 14... Qb6 {[%clk 0:02:40.9]} 15. b3 {[%clk
0:02:33.5]} 15... Rad8 {[%clk 0:02:39.9]} 16. Qc4 {[%clk 0:02:07.5]} 16... Nd5
{[%clk 0:02:38.3]} 17. Be5 {[%clk 0:02:06.3]} 17... Bf6 {[%clk 0:02:37]} 18. Bf3
{[%clk 0:01:56.1]} 18... Rc8 {[%clk 0:02:26.9]} 19. Bxf6 {[%clk 0:01:49.5]}
19... Nxf6 {[%clk 0:02:26]} 20. Qc5 {[%clk 0:01:49.8]} 20... Qxc5 {[%clk
0:02:24]} 21. dxc5 {[%clk 0:01:49.2]} 21... Rcd8 {[%clk 0:02:23.8]} 22. Rd6
{[%clk 0:01:46.2]} 22... Rxd6 {[%clk 0:02:22.2]} 23. cxd6 {[%clk 0:01:46.4]}
23... Rd8 {[%clk 0:02:23.1]} 24. Rd1 {[%clk 0:01:45.4]} 24... Rd7 {[%clk
0:02:21.7]} 25. c4 {[%clk 0:01:43.3]} 25... e5 {[%clk 0:02:15.8]} 26. c5 {[%clk
0:01:37.6]} 26... Kf8 {[%clk 0:02:13.8]} 27. Bg4 {[%clk 0:01:33.2]} 27... Nxg4
{[%clk 0:02:12.8]} 28. hxg4 {[%clk 0:01:33.5]} 28... f6 {[%clk 0:02:12.2]} 29.
Kf1 {[%clk 0:01:33.6]} 29... Kf7 {[%clk 0:02:12.4]} 30. Ke2 {[%clk 0:01:33.3]}
30... Ke6 {[%clk 0:02:12.7]} 31. Ke3 {[%clk 0:01:24]} 31... Rd8 {[%clk
0:02:11.8]} 32. Ke4 {[%clk 0:01:22.2]} 32... g6 {[%clk 0:02:11.5]} 33. g3 {[%clk
0:01:21.6]} 33... f5+ {[%clk 0:02:10.9]} 34. gxf5+ {[%clk 0:01:21.8]} 34...
gxf5+ {[%clk 0:02:11.8]} 35. Ke3 {[%clk 0:01:22]} 35... Kd7 {[%clk 0:02:11.2]}
36. Rh1 {[%clk 0:01:20.9]} 36... Rh8 {[%clk 0:02:11]} 37. Rh5 {[%clk 0:01:20.1]}
37... b6 {[%clk 0:02:07.1]} 38. cxb6 {[%clk 0:01:19.9]} 38... Kxd6 {[%clk
0:02:06.8]} 39. Rxf5 {[%clk 0:01:20.1]} 39... Rb8 {[%clk 0:02:02.7]} 40. Rf6+
{[%clk 0:01:15.9]} 40... Kd5 {[%clk 0:02:02.3]} 41. Kd3 {[%clk 0:01:08.6]} 41...
Rxb6 {[%clk 0:02:01.9]} 42. Kc3 {[%clk 0:01:08.7]} 42... Rb7 {[%clk 0:01:55.8]}
43. Rh6 {[%clk 0:01:06.1]} 43... Rf7 {[%clk 0:01:55.2]} 44. Rh2 {[%clk
0:00:56.4]} 44... Rf3+ {[%clk 0:01:54.2]} 45. Kc2 {[%clk 0:00:54.9]} 45... Kc5
{[%clk 0:01:52]} 46. Kb2 {[%clk 0:00:49.3]} 46... e4 {[%clk 0:01:49.8]} 47. Ka3
{[%clk 0:00:47.5]} 47... Kd4 {[%clk 0:01:48.9]} 48. g4 {[%clk 0:00:37]} 48... c5
{[%clk 0:01:48]} 49. g5 {[%clk 0:00:36.5]} 49... c4 {[%clk 0:01:47.3]} 50. Rxh7
{[%clk 0:00:34.6]} 50... Rxb3+ {[%clk 0:01:45.6]} 51. Ka2 {[%clk 0:00:34.1]}
51... Rf3 {[%clk 0:01:45.1]} 52. Rd7+ {[%clk 0:00:23.4]} 52... Kc3 {[%clk
0:01:44.4]} 53. g6 {[%clk 0:00:23.1]} 53... Rxf2+ {[%clk 0:01:43.9]} 54. Ka3
{[%clk 0:00:23.3]} 54... Rf1 {[%clk 0:01:42.6]} 55. Ka2 {[%clk 0:00:21.4]} 55...
e3 {[%clk 0:01:42.2]} 56. Re7 {[%clk 0:00:17.6]} 56... Kd2 {[%clk 0:01:40.8]}
57. Rd7+ {[%clk 0:00:17.7]} 57... Ke1 {[%clk 0:01:39.6]} 58. Re7 {[%clk
0:00:16.7]} 58... e2 {[%clk 0:01:39.4]} 59. g7 {[%clk 0:00:17]} 59... Rg1 {[%clk
0:01:39.1]} 60. Kb2 {[%clk 0:00:17.3]} 60... Rg3 {[%clk 0:01:31]} 61. Kc2 {[%clk
0:00:16.5]} 61... Kf1 {[%clk 0:01:28.7]} 62. Rf7+ {[%clk 0:00:15.9]} 62... Kg2
{[%clk 0:01:26.7]} 63. Re7 {[%clk 0:00:15.9]} 63... Kf2 {[%clk 0:01:26.7]} 64.
Rf7+ {[%clk 0:00:16]} 64... Kg1 {[%clk 0:01:26.9]} 65. Re7 {[%clk 0:00:16]}
65... Rg2 {[%clk 0:01:27.1]} 66. Kd2 {[%clk 0:00:15.6]} 66... Kf1 {[%clk
0:01:20.5]} 67. Rf7+ {[%clk 0:00:14.7]} 67... Kg1 {[%clk 0:01:20.7]} 68. Ke1
{[%clk 0:00:13.9]} 68... Kh2 {[%clk 0:01:20]} 69. Re7 {[%clk 0:00:13.2]} 69...
c3 {[%clk 0:01:18.9]} 70. Rxe2 {[%clk 0:00:13]} 70... c2 {[%clk 0:01:16.6]} 71.
Rxg2+ {[%clk 0:00:12.4]} 71... Kh1 {[%clk 0:01:15]} 72. Rxc2 {[%clk 0:00:11.3]}
1-0

[Event "*** Titled Tuesday Blitz"]
[Site "Chess.com"]
[Date "2020.10.20"]
[Round "8"]
[White "vugarrasulov"]
[Black "Rozum_Ivan"]
[Result "1-0"]
[WhiteElo "2875"]
[BlackElo "2747"]
[TimeControl "180+1"]
[EndTime "11:37:44 PDT"]
[Termination "vugarrasulov won by checkmate"]

1. e4 {[%clk 0:03:00.9]} 1... c6 {[%clk 0:02:34.5]} 2. d4 {[%clk 0:03:00.1]}
2... d5 {[%clk 0:02:34.4]} 3. Nc3 {[%clk 0:03:00.6]} 3... dxe4 {[%clk
0:02:34.3]} 4. Nxe4 {[%clk 0:03:01.5]} 4... Bf5 {[%clk 0:02:34.9]} 5. Nc5 {[%clk
0:03:00.6]} 5... b6 {[%clk 0:02:34.4]} 6. Nb3 {[%clk 0:03:00.5]} 6... e6 {[%clk
0:02:35]} 7. Nf3 {[%clk 0:03:00.9]} 7... Nf6 {[%clk 0:02:33.7]} 8. g3 {[%clk
0:03:01.4]} 8... Bd6 {[%clk 0:02:32.3]} 9. Bg2 {[%clk 0:03:01.6]} 9... h6 {[%clk
0:02:32.9]} 10. O-O {[%clk 0:03:02]} 10... O-O {[%clk 0:02:32.9]} 11. Qe2 {[%clk
0:03:01.7]} 11... Qc7 {[%clk 0:02:30.9]} 12. Ne5 {[%clk 0:02:58.4]} 12... Nfd7
{[%clk 0:02:24.1]} 13. Nc4 {[%clk 0:02:50.4]} 13... Be7 {[%clk 0:02:14]} 14. Bf4
{[%clk 0:02:49.4]} 14... Qb7 {[%clk 0:02:14.6]} 15. Nd6 {[%clk 0:02:48.3]} 15...
Bxd6 {[%clk 0:02:14.7]} 16. Bxd6 {[%clk 0:02:49.2]} 16... Rc8 {[%clk 0:02:14.4]}
17. c4 {[%clk 0:02:48.1]} 17... a5 {[%clk 0:02:12.3]} 18. Rac1 {[%clk
0:02:43.2]} 18... Na6 {[%clk 0:02:11.8]} 19. a3 {[%clk 0:02:42.2]} 19... a4
{[%clk 0:02:10.7]} 20. Nd2 {[%clk 0:02:42.2]} 20... Ra7 {[%clk 0:02:04.5]} 21.
Nf3 {[%clk 0:02:32.5]} 21... Nc7 {[%clk 0:01:54.4]} 22. Ne5 {[%clk 0:02:24.1]}
22... Ne8 {[%clk 0:01:54.5]} 23. Bb4 {[%clk 0:02:23.1]} 23... Nef6 {[%clk
0:01:51.2]} 24. Rfd1 {[%clk 0:02:16.5]} 24... Qa8 {[%clk 0:01:31.5]} 25. h3
{[%clk 0:01:57.8]} 25... Rac7 {[%clk 0:01:28.6]} 26. Bd6 {[%clk 0:01:56.2]}
26... Ra7 {[%clk 0:01:28.8]} 27. g4 {[%clk 0:01:53.8]} 27... Bh7 {[%clk
0:01:29]} 28. h4 {[%clk 0:01:48.8]} 28... Ne8 {[%clk 0:01:27.9]} 29. Bb4 {[%clk
0:01:48.8]} 29... Rac7 {[%clk 0:01:27.5]} 30. Re1 {[%clk 0:01:37.2]} 30... Qa6
{[%clk 0:01:25.9]} 31. Nxf7 {[%clk 0:01:32.4]} 31... c5 {[%clk 0:01:13.3]} 32.
Qxe6 {[%clk 0:01:25.8]} 32... Nf8 {[%clk 0:01:13.2]} 33. Nxh6+ {[%clk
0:01:09.5]} 33... Kh8 {[%clk 0:01:13.6]} 34. Nf7+ {[%clk 0:01:09.8]} 34... Kg8
{[%clk 0:01:11.9]} 35. Qe5 {[%clk 0:00:37.7]} 35... Rxf7 {[%clk 0:01:04.2]} 36.
dxc5 {[%clk 0:00:36.8]} 36... bxc5 {[%clk 0:01:01.5]} 37. Bc3 {[%clk 0:00:37.1]}
37... Nf6 {[%clk 0:00:51.2]} 38. g5 {[%clk 0:00:34.3]} 38... N6d7 {[%clk
0:00:17]} 39. Qg3 {[%clk 0:00:31.3]} 39... Nb6 {[%clk 0:00:14.8]} 40. h5 {[%clk
0:00:28.1]} 40... Bf5 {[%clk 0:00:14.3]} 41. g6 {[%clk 0:00:27.9]} 41... Rd7
{[%clk 0:00:12.5]} 42. Re5 {[%clk 0:00:22.6]} 42... Be6 {[%clk 0:00:10]} 43.
Rce1 {[%clk 0:00:20.3]} 43... Qxc4 {[%clk 0:00:10.1]} 44. R1e4 {[%clk
0:00:13.3]} 44... Qb3 {[%clk 0:00:08.3]} 45. Kh2 {[%clk 0:00:11.2]} 45... Bd5
{[%clk 0:00:06.9]} 46. Rf4 {[%clk 0:00:09.8]} 46... Bxg2 {[%clk 0:00:06.7]} 47.
Kxg2 {[%clk 0:00:10.3]} 47... Qd1 {[%clk 0:00:05.2]} 48. h6 {[%clk 0:00:09.5]}
48... gxh6 {[%clk 0:00:04.5]} 49. Rf7 {[%clk 0:00:10]} 49... Rxf7 {[%clk
0:00:02.9]} 50. gxf7+ {[%clk 0:00:10.9]} 50... Kxf7 {[%clk 0:00:03.8]} 51. Rf5+
{[%clk 0:00:10.8]} 51... Ke6 {[%clk 0:00:04.4]} 52. Rf6+ {[%clk 0:00:10.8]}
52... Ke7 {[%clk 0:00:04.5]} 53. Qg7+ {[%clk 0:00:10.6]} 53... Ke8 {[%clk
0:00:03.6]} 54. Rxf8# {[%clk 0:00:11.1]} 1-0

[Event "*** Titled Tuesday Blitz"]
[Site "Chess.com"]
[Date "2020.10.20"]
[Round "8"]
[White "Chamal_Gedgafov"]
[Black "OsorioFernando"]
[Result "1-0"]
[WhiteElo "2173"]
[BlackElo "2264"]
[TimeControl "180+1"]
[EndTime "11:37:45 PDT"]
[Termination "Chamal_Gedgafov won by checkmate"]

1. d4 {[%clk 0:03:00.9]} 1... Nf6 {[%clk 0:02:59.4]} 2. c4 {[%clk 0:03:00.3]}
2... g6 {[%clk 0:02:59.6]} 3. Nc3 {[%clk 0:02:59.8]} 3... d5 {[%clk 0:02:59.9]}
4. cxd5 {[%clk 0:02:59.7]} 4... Nxd5 {[%clk 0:03:00.8]} 5. e4 {[%clk 0:03:00.1]}
5... Nxc3 {[%clk 0:03:00.6]} 6. bxc3 {[%clk 0:03:01]} 6... Bg7 {[%clk
0:02:59.8]} 7. Be3 {[%clk 0:03:01.9]} 7... c5 {[%clk 0:02:59.2]} 8. Nf3 {[%clk
0:03:00.5]} 8... Nc6 {[%clk 0:02:57.9]} 9. Qd2 {[%clk 0:02:56.9]} 9... cxd4
{[%clk 0:02:55.6]} 10. cxd4 {[%clk 0:02:56.1]} 10... O-O {[%clk 0:02:52.9]} 11.
Rc1 {[%clk 0:02:46.6]} 11... Bg4 {[%clk 0:02:47.4]} 12. d5 {[%clk 0:02:45.6]}
12... Bxf3 {[%clk 0:02:41.2]} 13. gxf3 {[%clk 0:02:46.5]} 13... Ne5 {[%clk
0:02:42.1]} 14. Be2 {[%clk 0:02:46.5]} 14... Rc8 {[%clk 0:02:39]} 15. O-O {[%clk
0:02:45.5]} 15... Qd7 {[%clk 0:02:34.7]} 16. Kg2 {[%clk 0:02:45.1]} 16... b5
{[%clk 0:02:09.7]} 17. h3 {[%clk 0:02:30.4]} 17... Nc4 {[%clk 0:01:42.9]} 18.
Bxc4 {[%clk 0:02:26.9]} 18... bxc4 {[%clk 0:01:43.8]} 19. Bd4 {[%clk 0:02:25.9]}
19... Qa4 {[%clk 0:01:35.8]} 20. Bxg7 {[%clk 0:02:06.1]} 20... Kxg7 {[%clk
0:01:36.7]} 21. Rc2 {[%clk 0:02:06.6]} 21... Rc7 {[%clk 0:01:28.4]} 22. Rfc1
{[%clk 0:02:06.2]} 22... Rfc8 {[%clk 0:01:28.4]} 23. Qd4+ {[%clk 0:02:06]} 23...
Kg8 {[%clk 0:01:26.6]} 24. e5 {[%clk 0:02:06.4]} 24... Qb5 {[%clk 0:01:19.5]}
25. d6 {[%clk 0:01:56.8]} 25... exd6 {[%clk 0:01:20.4]} 26. exd6 {[%clk
0:01:56.8]} 26... Rc5 {[%clk 0:00:51.4]} 27. d7 {[%clk 0:01:31]} 27... Rd8
{[%clk 0:00:51.3]} 28. Rd1 {[%clk 0:01:14.8]} 28... Rc7 {[%clk 0:00:43.2]} 29.
Qg4 {[%clk 0:00:50.3]} 29... h5 {[%clk 0:00:34.8]} 30. Qf4 {[%clk 0:00:45]}
30... Rdxd7 {[%clk 0:00:26.8]} 31. Rxd7 {[%clk 0:00:43.5]} 31... Qxd7 {[%clk
0:00:27.7]} 32. Rxc4 {[%clk 0:00:40.9]} 32... Rxc4 {[%clk 0:00:27.4]} 33. Qxc4
{[%clk 0:00:41.5]} 33... a5 {[%clk 0:00:22.6]} 34. a4 {[%clk 0:00:40.7]} 34...
Qa7 {[%clk 0:00:19.9]} 35. f4 {[%clk 0:00:36.1]} 35... Qb6 {[%clk 0:00:18.9]}
36. Qc8+ {[%clk 0:00:33.6]} 36... Kg7 {[%clk 0:00:18.3]} 37. Qc3+ {[%clk
0:00:33.2]} 37... Kh7 {[%clk 0:00:18.3]} 38. Qe5 {[%clk 0:00:32.5]} 38... Qb4
{[%clk 0:00:16.6]} 39. Qe8 {[%clk 0:00:29.5]} 39... Kg7 {[%clk 0:00:15.1]} 40.
Kg3 {[%clk 0:00:28.7]} 40... Qb3+ {[%clk 0:00:14.2]} 41. f3 {[%clk 0:00:28.5]}
41... Qd1 {[%clk 0:00:13.4]} 42. Qe5+ {[%clk 0:00:24.2]} 42... Kh7 {[%clk
0:00:13.6]} 43. Kf2 {[%clk 0:00:22.7]} 43... Qxa4 {[%clk 0:00:12.3]} 44. Qf6
{[%clk 0:00:21.1]} 44... Qa2+ {[%clk 0:00:12]} 45. Kg3 {[%clk 0:00:19.9]} 45...
a4 {[%clk 0:00:12.9]} 46. f5 {[%clk 0:00:20.1]} 46... a3 {[%clk 0:00:11]} 47.
fxg6+ {[%clk 0:00:18.9]} 47... fxg6 {[%clk 0:00:11.9]} 48. Qe7+ {[%clk
0:00:18.5]} 48... Kh8 {[%clk 0:00:11.1]} 49. Qf8+ {[%clk 0:00:17.3]} 49... Kh7
{[%clk 0:00:10.9]} 50. Qe7+ {[%clk 0:00:17]} 50... Kg8 {[%clk 0:00:11.3]} 51.
Qe8+ {[%clk 0:00:16.1]} 51... Kg7 {[%clk 0:00:12.2]} 52. Qe7+ {[%clk 0:00:15.6]}
52... Kh6 {[%clk 0:00:11.6]} 53. Qf8+ {[%clk 0:00:14.5]} 53... Kg5 {[%clk
0:00:11.6]} 54. Qf4# {[%clk 0:00:13.8]} 1-0